bitfinex-derivatives/quotes_BTCF0:USTF0_20210705
["timestamp","ask_amount","ask_price","bid_price","bid_amount"]
[1625457126309,1.50707931,34293.0,34289.0,0.74834088]
[1625457126811,1.50707931,34293.0,34292.0,0.24057544]
[1625457126912,1.50563329,34297.0,34292.0,0.29957544]
[1625457127311,1.50563329,34297.0,34296.0,0.1]
[1625457127413,1.74673774,34298.0,34296.0,0.43733]
[1625457127711,1.5061623,34298.0,34296.0,0.43733]
[1625457127863,1.5061623,34298.0,34296.0,0.33733]
[1625457127964,1.50659039,34299.0,34296.0,0.33733]
[1625457128564,1.50659039,34299.0,34298.0,0.1]
[1625457128665,1.7477896,34301.0,34298.0,0.159]
[1625457128814,1.7477896,34301.0,34300.0,0.48115088]
[1625457128916,1.8067896,34301.0,34300.0,0.48115088]
[1625457129265,0.29957544,34301.0,34300.0,0.48115088]
[1625457129366,0.29957544,34301.0,34296.0,0.27833]
[1625457129467,0.24057544,34301.0,34296.0,0.27833]
[1625457129567,0.24057544,34301.0,34296.0,0.33733]
[1625457129767,0.24057544,34301.0,34300.0,0.1]
[1625457129867,0.24057544,34301.0,34300.0,0.159]
[1625457130873,0.24057544,34301.0,34300.0,0.64015088]
[1625457130972,0.24057544,34305.0,34300.0,0.64015088]
[1625457131383,0.24057544,34305.0,34300.0,0.54015088]
[1625457131683,0.24057544,34310.0,34300.0,0.54015088]
[1625457131977,0.24057544,34310.0,34304.0,0.1]
[1625457132076,0.24057544,34310.0,34304.0,0.39292]
[1625457132329,0.29957544,34310.0,34304.0,0.39292]
[1625457132425,0.24057544,34310.0,34304.0,0.29292]
[1625457132826,0.24057544,34310.0,34309.0,0.48115088]
[1625457132926,0.24057544,34310.0,34309.0,0.54015088]
[1625457133027,0.24057544,34310.0,34309.0,0.64015088]
[1625457133330,0.29957544,34310.0,34309.0,0.64015088]
[1625457133781,0.29957544,34310.0,34309.0,0.29481646]
[1625457134632,0.24057544,34310.0,34309.0,0.29481646]
[1625457135233,0.29957544,34310.0,34309.0,0.29481646]
[1625457135433,0.24057544,34310.0,34309.0,0.29481646]
[1625457136634,0.29957544,34310.0,34309.0,0.29481646]
[1625457136834,0.24057544,34310.0,34309.0,0.29481646]
[1625457136936,0.24057544,34310.0,34309.0,0.56801646]
[1625457137237,0.29957544,34310.0,34309.0,0.56801646]
[1625457137338,0.24057544,34310.0,34309.0,0.56801646]
[1625457137439,0.29957544,34310.0,34309.0,0.56801646]
[1625457137538,0.24057544,34310.0,34309.0,0.56801646]
[1625457137890,0.29957544,34310.0,34309.0,0.56801646]
[1625457138443,0.24057544,34310.0,34309.0,0.56801646]
[1625457138642,0.29957544,34310.0,34309.0,0.56801646]
[1625457140797,0.24057544,34310.0,34309.0,0.56801646]
[1625457141298,0.29957544,34310.0,34309.0,0.56801646]
[1625457141501,0.29957544,34310.0,34309.0,0.29481646]
[1625457141701,0.54896544,34310.0,34309.0,0.29481646]
[1625457142102,0.54896544,34310.0,34307.0,0.24057544]
[1625457142201,0.54896544,34310.0,34309.0,0.059]
[1625457142802,0.29957544,34310.0,34309.0,0.059]
[1625457144656,0.24057544,34310.0,34309.0,0.059]
[1625457144956,0.24057544,34310.0,34309.0,0.31816]
[1625457147211,0.24057544,34310.0,34309.0,0.059]
[1625457148817,0.29957544,34310.0,34309.0,0.059]
[1625457148918,0.29957544,34310.0,34300.0,0.48115088]
[1625457149016,0.24057544,34301.0,34300.0,0.48115088]
[1625457149115,0.46672544,34301.0,34300.0,0.54015088]
[1625457149217,0.52572544,34301.0,34300.0,0.54015088]
[1625457149415,0.52572544,34301.0,34300.0,0.29957544]
[1625457149717,0.52572544,34301.0,34300.0,0.24057544]
[1625457150315,0.52572544,34301.0,34291.0,0.24057544]
[1625457150416,0.52572544,34301.0,34291.0,0.29957544]
[1625457150417,0.58272544,34301.0,34291.0,0.29957544]
[1625457150517,0.58272544,34301.0,34291.0,0.35857544]
[1625457151069,0.24057544,34292.0,34291.0,0.59915088]
[1625457151719,0.24057544,34298.0,34291.0,0.59915088]
[1625457151819,0.24057544,34298.0,34291.0,0.86347088]
[1625457152320,0.24057544,34298.0,34291.0,0.80447088]
[1625457152521,0.24057544,34298.0,34291.0,0.86347088]
[1625457152820,0.24057544,34298.0,34291.0,0.86647088]
[1625457153025,0.24057544,34298.0,34297.0,0.24057544]
[1625457153123,0.24057544,34298.0,34297.0,0.29957544]
[1625457154774,0.24057544,34298.0,34297.0,0.60396544]
[1625457155124,0.24057544,34301.0,34297.0,0.60396544]
[1625457156225,0.29757544,34301.0,34297.0,0.60396544]
[1625457156325,0.29757544,34301.0,34297.0,0.29957544]
[1625457156426,0.35657544,34301.0,34297.0,0.29957544]
[1625457156524,0.35657544,34301.0,34297.0,0.24057544]
[1625457157027,0.24057544,34298.0,34291.0,0.48415088]
[1625457157125,0.057,34297.0,34291.0,0.48415088]
[1625457157225,0.116,34297.0,34291.0,0.48415088]
[1625457157376,0.13029098,34297.0,34291.0,0.48415088]
[1625457157578,0.01429109,34296.0,34291.0,0.48415088]
[1625457157677,0.07329109,34296.0,34291.0,0.48415088]
[1625457158078,0.01428656,34295.0,34291.0,0.48415088]
[1625457158283,0.07328656,34295.0,34291.0,0.48415088]
[1625457158732,0.01428671,34294.0,34291.0,0.48415088]
[1625457158831,0.39799671,34294.0,34291.0,0.48415088]
[1625457158932,0.45499671,34294.0,34291.0,0.54315088]
[1625457159030,0.24057544,34292.0,34291.0,0.24357544]
[1625457159130,0.29957544,34292.0,34291.0,0.24357544]
[1625457160033,0.35857544,34292.0,34291.0,0.24357544]
[1625457160134,0.37286289,34292.0,34291.0,0.003]
[1625457160734,0.37286289,34292.0,34285.0,0.9573]
[1625457160834,0.057,34291.0,34285.0,0.9573]
[1625457160935,0.116,34291.0,34285.0,0.9573]
[1625457161036,0.116,34291.0,34277.0,0.24057544]
[1625457161037,0.72172632,34286.0,34277.0,0.24057544]
[1625457161192,0.057,34285.0,34277.0,0.24057544]
[1625457161285,0.175,34285.0,34277.0,0.24057544]
[1625457162335,0.175,34285.0,34277.0,0.29957544]
[1625457162436,0.175,34285.0,34277.0,0.24057544]
[1625457162537,0.175,34285.0,34277.0,0.29957544]
[1625457162636,0.175,34285.0,34277.0,0.24057544]
[1625457163039,0.48115088,34278.0,34277.0,0.24057544]
[1625457163137,0.79190088,34278.0,34277.0,0.24057544]
[1625457163640,0.79190088,34278.0,34277.0,0.29957544]
[1625457164190,0.79190088,34278.0,34277.0,0.24057544]
[1625457164492,0.79190088,34278.0,34277.0,0.29957544]
[1625457164592,0.79190088,34278.0,34277.0,0.24057544]
[1625457164693,0.79190088,34278.0,34277.0,0.29957544]
[1625457164989,0.79190088,34278.0,34277.0,0.24057544]
[1625457165291,0.73290088,34278.0,34277.0,0.29957544]
[1625457165391,0.48115088,34278.0,34277.0,0.29957544]
[1625457166446,0.54015088,34278.0,34277.0,0.29957544]
[1625457167449,0.48115088,34278.0,34277.0,0.29957544]
[1625457167952,0.48115088,34278.0,34277.0,0.35857544]
[1625457168250,0.057,34285.0,34277.0,0.64394544]
[1625457168375,0.48115088,34286.0,34277.0,0.64394544]
[1625457169103,0.48115088,34286.0,34285.0,0.24057544]
[1625457169203,0.48115088,34286.0,34285.0,0.60538544]
[1625457172661,0.54015088,34286.0,34285.0,0.30581]
[1625457172759,0.54015088,34286.0,34277.0,0.52594544]
[1625457172859,0.116,34285.0,34277.0,0.24057544]
[1625457172957,0.116,34285.0,34277.0,0.29957544]
[1625457173061,0.175,34285.0,34277.0,0.29957544]
[1625457173159,0.175,34285.0,34281.0,0.24057544]
[1625457173460,0.08384595,34283.0,34281.0,0.24057544]
[1625457173661,0.14284595,34283.0,34281.0,0.24057544]
[1625457173911,0.08396781,34282.0,34281.0,0.24057544]
[1625457174412,0.14296781,34282.0,34281.0,0.24057544]
[1625457175164,0.38354325,34282.0,34281.0,0.24057544]
[1625457175618,0.29957544,34282.0,34281.0,0.24057544]
[1625457176217,0.80357654,34282.0,34281.0,0.24057544]
[1625457178518,0.74457654,34282.0,34281.0,0.24057544]
[1625457179674,0.80357654,34282.0,34281.0,0.24057544]
[1625457179975,1.81377015,34282.0,34281.0,0.24057544]
[1625457181682,2.06276015,34282.0,34281.0,0.24057544]
[1625457183036,3.24115224,34282.0,34281.0,0.24057544]
[1625457183385,3.24115224,34282.0,34275.0,0.24057544]
[1625457183485,0.057,34281.0,34275.0,0.29957544]
[1625457183585,0.057,34281.0,34275.0,0.35857544]
[1625457183687,0.057,34281.0,34275.0,0.29957544]
[1625457183786,0.08437621,34278.0,34275.0,0.29957544]
[1625457183886,0.14137621,34278.0,34275.0,0.29957544]
[1625457184187,0.08435652,34277.0,34275.0,0.29957544]
[1625457184538,0.38184652,34277.0,34275.0,0.059]
[1625457184638,0.71881985,34277.0,34275.0,0.059]
[1625457185292,0.48115088,34276.0,34275.0,0.059]
[1625457185494,0.98624362,34276.0,34275.0,0.059]
[1625457186440,1.65940335,34276.0,34275.0,0.059]
[1625457186541,1.65940335,34276.0,34275.0,0.06345955]
[1625457186843,1.32298931,34276.0,34275.0,0.06345955]
[1625457188197,0.90220229,34276.0,34275.0,0.06345955]
[1625457188896,0.81789657,34276.0,34275.0,0.06345955]
[1625457189493,1.13377657,34276.0,34275.0,0.06345955]
[1625457190297,1.63829788,34276.0,34275.0,0.06345955]
[1625457190795,1.13377657,34276.0,34275.0,0.06345955]
[1625457191195,0.79703088,34276.0,34275.0,0.06345955]
[1625457191295,0.79703088,34276.0,34275.0,0.00445955]
[1625457191645,0.88129661,34276.0,34275.0,0.00445955]
[1625457191745,0.88129661,34276.0,34270.0,0.00447874]
[1625457191845,0.057,34275.0,34270.0,0.09307874]
[1625457191945,0.057,34275.0,34270.0,0.06347874]
[1625457192196,0.39342474,34275.0,34270.0,0.06347874]
[1625457192295,0.47765702,34275.0,34271.0,0.00447866]
[1625457192395,0.47765702,34275.0,34271.0,0.37915866]
[1625457192647,0.057,34275.0,34271.0,0.37915866]
[1625457192896,0.057,34275.0,34272.0,0.00447856]
[1625457192993,0.057,34275.0,34272.0,0.06347856]
[1625457193294,0.24057544,34276.0,34272.0,0.12247856]
[1625457193394,0.24057544,34276.0,34275.0,0.48115088]
[1625457193494,0.23477544,34276.0,34275.0,0.59915088]
[1625457193898,0.23477544,34276.0,34275.0,0.60361117]
[1625457194198,0.23477544,34276.0,34275.0,1.80070207]
[1625457194298,0.20107544,34276.0,34275.0,1.80070207]
[1625457194499,0.20107544,34276.0,34275.0,1.88920207]
[1625457194700,0.20107544,34276.0,34275.0,1.83020207]
[1625457194800,0.20107544,34276.0,34275.0,2.85624375]
[1625457195156,0.20107544,34276.0,34275.0,2.91524375]
[1625457195357,0.16807544,34276.0,34275.0,2.91524375]
[1625457196409,0.16807544,34276.0,34275.0,1.88920207]
[1625457196959,0.16807544,34276.0,34275.0,2.9155277]
[1625457199366,0.24057544,34282.0,34275.0,2.9155277]
[1625457199462,0.66248022,34285.0,34275.0,2.9155277]
[1625457199765,0.24057544,34285.0,34279.0,0.42774599]
[1625457199864,0.24057544,34285.0,34279.0,0.78225599]
[1625457199964,0.24057544,34285.0,34279.0,0.84125599]
[1625457200066,0.24057544,34285.0,34280.0,0.00446142]
[1625457200165,0.24057544,34285.0,34280.0,0.12246142]
[1625457200469,0.24057544,34285.0,34281.0,0.08554703]
[1625457200567,0.24057544,34285.0,34281.0,0.20800821]
[1625457200868,0.24057544,34285.0,34282.0,0.00446111]
[1625457200968,0.24057544,34285.0,34283.0,0.08557327]
[1625457201069,0.24057544,34285.0,34283.0,0.14457327]
[1625457201168,0.24057544,34285.0,34283.0,0.20357327]
[1625457201418,0.24057544,34285.0,34284.0,0.48561195]
[1625457201518,0.24057544,34285.0,34284.0,0.60361195]
[1625457201718,0.66311701,34289.0,34284.0,0.60361195]
[1625457201970,0.32518975,34289.0,34285.0,0.00446073]
[1625457202070,0.32518975,34289.0,34285.0,0.06346073]
[1625457202169,0.32518975,34289.0,34285.0,0.12246073]
[1625457202520,0.32518975,34289.0,34286.0,0.00446066]
[1625457202622,0.24057544,34289.0,34286.0,0.52231612]
[1625457202870,0.24057544,34289.0,34287.0,0.00446056]
[1625457202972,0.24057544,34289.0,34287.0,0.12246056]
[1625457203121,0.24057544,34289.0,34287.0,0.20805731]
[1625457203224,0.24057544,34289.0,34288.0,3.9701]
[1625457203421,0.24057544,34289.0,34288.0,4.33313597]
[1625457203872,0.42294184,34292.0,34288.0,4.33313597]
[1625457204121,0.42294184,34292.0,34288.0,4.43313597]
[1625457204271,0.42294184,34292.0,34289.0,0.00446038]
[1625457204371,0.42294184,34292.0,34289.0,0.12246038]
[1625457204773,0.08472546,34292.0,34290.0,0.0044603]
[1625457204872,0.08472546,34292.0,34290.0,0.0634603]
[1625457204972,0.08472546,34292.0,34290.0,0.1224603]
[1625457205372,0.08472546,34292.0,34290.0,0.118]
[1625457205474,0.08472546,34292.0,34291.0,0.34057544]
[1625457205573,0.08472546,34292.0,34291.0,0.45857544]
[1625457205673,0.32534869,34293.0,34291.0,0.45857544]
[1625457205777,0.8463788,34294.0,34291.0,0.45857544]
[1625457205874,0.48700151,34295.0,34291.0,0.46303523]
[1625457206073,0.41500151,34295.0,34291.0,0.46303523]
[1625457206172,0.41500151,34295.0,34292.0,0.06345944]
[1625457206272,0.41500151,34295.0,34292.0,0.50254244]
[1625457206373,1.01541767,34296.0,34292.0,0.50254244]
[1625457206475,1.01653479,34300.0,34292.0,0.50254244]
[1625457206575,1.01653479,34300.0,34292.0,0.56154244]
[1625457206674,1.01653479,34300.0,34293.0,0.00445913]
[1625457206774,1.01653479,34300.0,34293.0,0.41151913]
[1625457206974,0.87193479,34300.0,34294.0,0.433008]
[1625457207075,0.84653479,34300.0,34299.0,0.1]
[1625457207175,0.68223479,34300.0,34299.0,0.159]
[1625457207274,0.57503479,34300.0,34299.0,0.218]
[1625457207375,1.24370892,34306.0,34299.0,0.159]
[1625457207476,1.48428436,34306.0,34305.0,0.24057544]
[1625457207577,1.42728436,34306.0,34305.0,0.29957544]
[1625457207876,2.7815541,34306.0,34305.0,0.29957544]
[1625457208577,2.7815541,34306.0,34305.0,0.24057544]
[1625457208777,2.7815541,34306.0,34305.0,0.34057544]
[1625457209784,2.7815541,34306.0,34305.0,0.39957544]
[1625457209982,2.7815541,34306.0,34305.0,0.34057544]
[1625457210083,2.7815541,34306.0,34305.0,0.39957544]
[1625457211237,2.7815541,34306.0,34305.0,0.45857544]
[1625457211638,1.42728436,34306.0,34305.0,0.45857544]
[1625457211738,1.42728436,34306.0,34305.0,0.39957544]
[1625457211838,1.42728436,34306.0,34305.0,0.47197544]
[1625457212790,1.42728436,34306.0,34305.0,0.60337544]
[1625457215543,1.42728436,34306.0,34305.0,0.54437544]
[1625457215944,1.42728436,34306.0,34305.0,0.60337544]
[1625457216644,1.42728436,34306.0,34305.0,0.54437544]
[1625457217297,0.24057544,34306.0,34305.0,0.54437544]
[1625457218099,0.56052544,34306.0,34305.0,0.54437544]
[1625457218201,0.56052544,34306.0,34305.0,0.48537544]
[1625457218300,0.56052544,34306.0,34305.0,0.54437544]
[1625457218499,0.56052544,34306.0,34305.0,0.48537544]
[1625457218751,0.56052544,34306.0,34305.0,0.54437544]
[1625457219754,0.56052544,34306.0,34305.0,0.60337544]
[1625457220507,0.56052544,34306.0,34305.0,0.54437544]
[1625457220605,0.61752544,34306.0,34305.0,0.2448]
[1625457220709,0.67652544,34306.0,34288.0,1.0457]
[1625457220806,0.67652544,34306.0,34297.0,0.17100736]
[1625457220807,0.61952544,34306.0,34297.0,0.17100736]
[1625457220907,0.057,34305.0,34297.0,0.17100736]
[1625457221006,0.116,34305.0,34297.0,0.17100736]
[1625457221107,0.175,34305.0,34297.0,0.17100736]
[1625457221206,4.6746,34303.0,34297.0,0.17100736]
[1625457221307,0.057,34302.0,34297.0,0.17100736]
[1625457221408,2.52388703,34298.0,34288.0,0.9594]
[1625457221507,0.057,34297.0,34287.0,0.919]
[1625457221607,0.48115088,34289.0,34287.0,0.919]
[1625457221708,0.057,34288.0,34287.0,0.919]
[1625457222006,0.057,34288.0,34284.0,0.1710505]
[1625457222658,0.22523242,34288.0,34281.0,0.17107258]
[1625457222757,0.22523242,34288.0,34281.0,0.23007258]
[1625457222857,0.22523242,34288.0,34281.0,0.28907258]
[1625457223160,0.22523242,34288.0,34281.0,0.118]
[1625457223161,0.16809396,34287.0,34281.0,0.118]
[1625457223408,0.16809396,34287.0,34282.0,0.00448173]
[1625457223509,0.16809396,34287.0,34282.0,0.06348173]
[1625457223609,0.24057544,34283.0,34282.0,0.30405717]
[1625457224917,0.24057544,34283.0,34282.0,0.24505717]
[1625457225015,0.29757544,34283.0,34282.0,0.24057544]
[1625457225564,0.35657544,34283.0,34282.0,0.24057544]
[1625457225664,0.5246341,34283.0,34282.0,0.24057544]
[1625457225764,0.5246341,34283.0,34277.0,0.41172463]
[1625457226064,0.5246341,34283.0,34277.0,0.47072463]
[1625457226165,0.4656341,34283.0,34277.0,0.47072463]
[1625457226266,0.16797338,34282.0,34277.0,0.29957544]
[1625457226365,0.55851338,34282.0,34277.0,0.29957544]
[1625457226467,0.50151338,34282.0,34277.0,0.29957544]
[1625457226569,0.55851338,34282.0,34277.0,0.29957544]
[1625457226771,0.55851338,34282.0,34277.0,0.35857544]
[1625457226969,0.55851338,34282.0,34277.0,0.29957544]
[1625457227120,0.39054,34282.0,34277.0,0.29957544]
[1625457227219,0.44954,34282.0,34277.0,0.29957544]
[1625457227570,0.44954,34282.0,34281.0,0.24057544]
[1625457227672,0.39054,34282.0,34281.0,0.24057544]
[1625457228471,0.39054,34282.0,34281.0,0.29957544]
[1625457228971,0.24057544,34283.0,34281.0,0.29957544]
[1625457229325,0.16801167,34282.0,34281.0,0.29957544]
[1625457229422,0.16801167,34282.0,34281.0,0.35857544]
[1625457229623,0.16801167,34282.0,34281.0,0.59915088]
[1625457229723,0.057,34285.0,34281.0,0.59915088]
[1625457229724,0.22512377,34285.0,34281.0,0.59915088]
[1625457229824,0.16812377,34285.0,34281.0,0.59915088]
[1625457230124,0.16812377,34285.0,34282.0,0.00448171]
[1625457230224,0.16828442,34288.0,34282.0,0.23462438]
[1625457230324,0.16828442,34288.0,34282.0,0.29362438]
[1625457230624,0.48115088,34289.0,34284.0,0.1711374]
[1625457230724,0.48115088,34289.0,34284.0,0.2301374]
[1625457230824,0.48115088,34289.0,34284.0,0.2891374]
[1625457231126,0.48115088,34289.0,34287.0,0.17111687]
[1625457231223,0.48115088,34289.0,34287.0,0.40062687]
[1625457231326,0.48115088,34289.0,34287.0,0.51862687]
[1625457231623,0.48115088,34289.0,34288.0,0.24057544]
[1625457231724,0.48115088,34289.0,34288.0,0.29957544]
[1625457231824,0.48115088,34289.0,34288.0,0.35857544]
[1625457232476,0.48115088,34289.0,34288.0,0.45857544]
[1625457237636,0.48115088,34289.0,34288.0,5.58127544]
[1625457238036,0.48115088,34289.0,34288.0,5.52227544]
[1625457238137,0.48115088,34289.0,34288.0,5.58127544]
[1625457238838,0.16857939,34292.0,34288.0,5.58127544]
[1625457239289,0.16857939,34292.0,34288.0,5.48127544]
[1625457239641,0.16857939,34292.0,34291.0,0.24057544]
[1625457239741,0.16862216,34293.0,34291.0,0.29957544]
[1625457239943,0.16862216,34293.0,34291.0,0.39957544]
[1625457240390,0.16862216,34293.0,34291.0,0.29957544]
[1625457240490,0.16862216,34293.0,34291.0,0.35857544]
[1625457240993,0.16862216,34293.0,34292.0,0.1]
[1625457241093,0.16862216,34293.0,34292.0,0.3863]
[1625457241193,0.16862216,34293.0,34292.0,0.4453]
[1625457241296,0.16865239,34294.0,34292.0,0.4453]
[1625457241594,0.16865239,34294.0,34292.0,0.3453]
[1625457241695,0.16865239,34294.0,34293.0,0.24057544]
[1625457241795,0.16865239,34294.0,34293.0,0.35857544]
[1625457242297,1.25160958,34296.0,34293.0,0.45857544]
[1625457242498,1.25160958,34296.0,34293.0,0.39957544]
[1625457242596,1.25160958,34296.0,34293.0,0.29957544]
[1625457242697,1.30860958,34296.0,34293.0,0.29957544]
[1625457243202,1.01067733,34294.0,34293.0,0.29957544]
[1625457243299,1.22141733,34294.0,34293.0,0.29957544]
[1625457244001,1.22141733,34294.0,34293.0,0.39957544]
[1625457245004,2.40001308,34294.0,34293.0,0.39957544]
[1625457246406,2.40001308,34294.0,34293.0,0.34057544]
[1625457246604,2.40001308,34294.0,34293.0,0.1]
[1625457246712,2.45901308,34294.0,34293.0,0.1]
[1625457246805,3.8056108,34294.0,34293.0,0.1]
[1625457247758,4.28676168,34294.0,34293.0,0.1]
[1625457247857,4.34576168,34294.0,34293.0,0.1]
[1625457248258,5.85988588,34294.0,34293.0,0.1]
[1625457248811,5.87405353,34294.0,34283.0,0.24057544]
[1625457248909,0.057,34293.0,34283.0,0.29957544]
[1625457249011,0.175,34293.0,34283.0,0.29957544]
[1625457249112,1.01109063,34284.0,34283.0,0.29957544]
[1625457249210,1.25923063,34284.0,34283.0,0.29957544]
[1625457249309,1.31823063,34284.0,34283.0,0.29957544]
[1625457249810,1.79938151,34284.0,34283.0,0.059]
[1625457250110,2.97943097,34284.0,34283.0,0.059]
[1625457251709,2.92043097,34284.0,34283.0,0.059]
[1625457253312,2.97943097,34284.0,34283.0,0.059]
[1625457253867,4.32803749,34284.0,34283.0,0.059]
[1625457254264,2.97943097,34284.0,34283.0,0.059]
[1625457265747,1.79938151,34284.0,34283.0,0.059]
[1625457266146,1.85638151,34284.0,34283.0,0.059]
[1625457267053,2.53071255,34284.0,34283.0,0.059]
[1625457267609,2.41471255,34284.0,34283.0,0.059]
[1625457267716,2.41471255,34284.0,34283.0,0.06348203]
[1625457267822,1.15548192,34284.0,34283.0,0.06348203]
[1625457267909,1.15548192,34284.0,34283.0,0.30405747]
[1625457268016,1.15548192,34284.0,34283.0,0.36305747]
[1625457268503,0.48115088,34284.0,34283.0,0.36305747]
[1625457269506,0.48115088,34284.0,34283.0,1.04904507]
[1625457269607,0.48115088,34284.0,34283.0,4.84624507]
[1625457269806,0.24057544,34284.0,34283.0,4.84624507]
[1625457269907,0.16905681,34286.0,34283.0,4.84624507]
[1625457270156,0.16905681,34286.0,34284.0,0.00448095]
[1625457270257,0.16905681,34286.0,34284.0,0.12248095]
[1625457270357,0.24057544,34287.0,34284.0,0.12248095]
[1625457270760,0.24057544,34287.0,34285.0,0.00448115]
[1625457270858,0.24057544,34287.0,34285.0,0.43263115]
[1625457271059,0.40969514,34287.0,34286.0,0.17151378]
[1625457271158,0.40969514,34287.0,34286.0,0.23051378]
[1625457271259,0.40969514,34287.0,34286.0,0.29399515]
[1625457271613,0.24057544,34287.0,34286.0,0.12248137]
[1625457271909,0.24057544,34287.0,34286.0,0.36305681]
[1625457273062,0.24057544,34287.0,34286.0,0.53463187]
[1625457273564,0.40979117,34287.0,34286.0,0.53463187]
[1625457274117,0.40979117,34287.0,34286.0,0.47563187]
[1625457274214,0.40979117,34287.0,34286.0,0.30405681]
[1625457274714,0.40979117,34287.0,34286.0,1.04965317]
[1625457276066,0.16921573,34287.0,34286.0,1.04965317]
[1625457276520,0.16952015,34289.0,34286.0,3.28230173]
[1625457276968,0.16952015,34289.0,34287.0,0.00450399]
[1625457277070,0.16952015,34289.0,34288.0,1.71741008]
[1625457277171,0.16952015,34289.0,34288.0,1.83541008]
[1625457277270,0.16952015,34289.0,34288.0,1.77641008]
[1625457277572,0.16952015,34289.0,34288.0,1.78091419]
[1625457277771,0.67741824,34290.0,34288.0,0.85046814]
[1625457277870,0.67741824,34290.0,34289.0,0.24057544]
[1625457277970,0.91799368,34290.0,34289.0,0.29957544]
[1625457278070,0.91799368,34290.0,34289.0,0.30407945]
[1625457278171,0.24057544,34290.0,34289.0,0.99105002]
[1625457278521,0.91844913,34290.0,34289.0,2.02206223]
[1625457278822,0.91844913,34290.0,34289.0,2.18106223]
[1625457279326,0.91844913,34290.0,34289.0,1.15005002]
[1625457279824,1.93506201,34290.0,34289.0,1.15005002]
[1625457281181,1.93506201,34290.0,34289.0,2.18177715]
[1625457281532,0.91844913,34290.0,34289.0,2.18177715]
[1625457282383,1.93564803,34290.0,34289.0,2.18177715]
[1625457282785,0.91844913,34290.0,34289.0,2.18177715]
[1625457283889,0.41039971,34290.0,34289.0,3.38534258]
[1625457284188,0.16982427,34290.0,34289.0,3.38534258]
[1625457285492,0.16988714,34292.0,34289.0,4.76049214]
[1625457285792,0.16988714,34292.0,34290.0,0.00450197]
[1625457285895,0.16988714,34292.0,34290.0,0.12250197]
[1625457285992,0.16988714,34292.0,34291.0,0.24057544]
[1625457286092,0.16988714,34292.0,34291.0,0.35857544]
[1625457286193,0.16988714,34292.0,34291.0,3.28063124]
[1625457286293,0.16988714,34292.0,34291.0,3.28513327]
[1625457286444,0.16988714,34292.0,34291.0,3.38513327]
[1625457286593,0.16975858,34293.0,34291.0,3.38513327]
[1625457286894,0.16975858,34293.0,34292.0,0.00450206]
[1625457286996,0.16975858,34293.0,34292.0,0.06350206]
[1625457287096,0.16975858,34293.0,34292.0,0.12250206]
[1625457287197,0.16975858,34293.0,34292.0,0.21080206]
[1625457287395,0.16975858,34293.0,34292.0,3.13229764]
[1625457287595,0.16975858,34293.0,34292.0,3.04399764]
[1625457287747,0.16975858,34293.0,34292.0,3.14399764]
[1625457287996,0.24057544,34294.0,34292.0,3.14399764]
[1625457287997,0.41011496,34294.0,34292.0,3.14399764]
[1625457288295,0.41011496,34294.0,34292.0,3.04399764]
[1625457288395,0.41011496,34294.0,34293.0,4.29504696]
[1625457288396,0.24057544,34294.0,34293.0,4.29504696]
[1625457288495,0.24057544,34294.0,34293.0,4.6167085]
[1625457288596,0.24057544,34294.0,34293.0,4.6757085]
[1625457288695,0.18157544,34294.0,34293.0,4.6167085]
[1625457288953,0.16956891,34296.0,34293.0,4.7167085]
[1625457289060,0.16956891,34296.0,34293.0,4.7757085]
[1625457289250,0.16956891,34296.0,34294.0,0.00450124]
[1625457289348,0.16970336,34299.0,34294.0,0.12250124]
[1625457289746,0.16970336,34299.0,34295.0,0.00450119]
[1625457289846,0.16970336,34299.0,34295.0,0.12250119]
[1625457289997,0.16970336,34299.0,34298.0,0.48115088]
[1625457290099,0.24057544,34300.0,34298.0,3.51969344]
[1625457290100,0.41029868,34300.0,34298.0,3.51969344]
[1625457290199,0.41029868,34300.0,34298.0,3.61969344]
[1625457290297,0.41029868,34300.0,34298.0,3.62419461]
[1625457290548,0.41029868,34300.0,34299.0,0.00450117]
[1625457290651,0.41029868,34300.0,34299.0,2.98403781]
[1625457290750,0.41029868,34300.0,34299.0,3.04303781]
[1625457291251,0.41029868,34300.0,34299.0,3.14303781]
[1625457291705,0.24057544,34300.0,34299.0,1.9404639]
[1625457292058,0.24057544,34300.0,34299.0,3.14223879]
[1625457292356,0.16937061,34301.0,34299.0,3.14223879]
[1625457292559,0.21991655,34303.0,34299.0,3.14223879]
[1625457292756,0.21991655,34303.0,34300.0,0.00450067]
[1625457292857,0.21991655,34303.0,34300.0,0.29961067]
[1625457292958,0.21991655,34303.0,34300.0,0.35861067]
[1625457293057,0.21991655,34303.0,34300.0,0.44591067]
[1625457293160,0.21991655,34303.0,34302.0,2.91841086]
[1625457293259,0.21991655,34303.0,34302.0,2.97741086]
[1625457293360,0.21991655,34303.0,34302.0,3.03641086]
[1625457293560,0.21991655,34303.0,34302.0,3.13641086]
[1625457293762,0.21991655,34303.0,34302.0,0.90468491]
[1625457293860,0.21991655,34303.0,34302.0,0.90918657]
[1625457294061,0.21991655,34303.0,34302.0,1.14976201]
[1625457294210,0.21991655,34303.0,34302.0,2.17887187]
[1625457295064,0.21991655,34303.0,34302.0,3.37948758]
[1625457295564,0.21991655,34303.0,34302.0,2.17887187]
[1625457296265,0.21991655,34303.0,34302.0,2.69301228]
[1625457296968,0.21991655,34303.0,34302.0,2.76541228]
[1625457298120,0.21991655,34303.0,34302.0,3.96421118]
[1625457299573,0.21991655,34303.0,34302.0,2.76541228]
[1625457301122,0.21991655,34303.0,34302.0,3.96331247]
[1625457301974,0.21991655,34303.0,34302.0,4.03571247]
[1625457302525,0.24057544,34307.0,34302.0,4.03571247]
[1625457302877,0.24057544,34307.0,34306.0,0.51338603]
[1625457302983,0.24057544,34307.0,34306.0,0.57238603]
[1625457303082,0.24057544,34307.0,34306.0,0.63138603]
[1625457303282,0.24057544,34307.0,34306.0,0.12250125]
[1625457303885,0.24057544,34307.0,34306.0,0.22250125]
[1625457304084,0.24057544,34307.0,34306.0,0.46307669]
[1625457304235,0.24057544,34307.0,34306.0,0.40407669]
[1625457304386,0.24057544,34307.0,34306.0,0.46307669]
[1625457304837,0.24057544,34307.0,34306.0,0.45857544]
[1625457306591,0.24057544,34307.0,34306.0,0.39957544]
[1625457307942,0.24057544,34307.0,34306.0,0.45857544]
[1625457308044,0.24057544,34307.0,34306.0,0.46307681]
[1625457308390,0.24057544,34307.0,34306.0,0.40407681]
[1625457308842,0.24057544,34307.0,34306.0,0.46307681]
[1625457308942,0.24057544,34307.0,34306.0,0.40407681]
[1625457309141,0.24057544,34307.0,34306.0,0.34507681]
[1625457309342,0.24057544,34307.0,34306.0,0.34057544]
[1625457309591,0.24057544,34307.0,34306.0,0.34507699]
[1625457311345,0.24057544,34307.0,34306.0,0.40407699]
[1625457312148,0.24057544,34307.0,34306.0,0.34507699]
[1625457313953,0.24057544,34307.0,34306.0,0.40407699]
[1625457319869,0.24057544,34312.0,34306.0,0.40407699]